fUST/lending_fUST_20240728
["ID","MTS","AMOUNT","RATE_DAILY","PERIOD"]
[333396026,1722102658630,-500.0,0.0001452,2]
[333396027,1722102658641,-508.62913519,0.0001452,2]
[333396028,1722102658652,-500.0,0.0001452,2]
[333396029,1722102658663,-500.0,0.0001452,2]
[333396030,1722102658673,-592.98,0.0001452,2]
[333396031,1722102658682,-500.0,0.0001452,2]
[333396032,1722102658692,-374.22,0.0001452,2]
[333396033,1722102658702,-500.0,0.0001452,2]
[333396034,1722102658713,-500.0,0.0001452,2]
[333396035,1722102658723,-505.61158073,0.0001452,2]
[333396036,1722102658733,-406.42769149,0.0001452,2]
[333396037,1722102658743,-500.0,0.0001452,2]
[333396038,1722102658752,-500.0,0.0001452,2]
[333396039,1722102658762,-654.6,0.0001452,2]
[333396040,1722102658774,-500.0,0.0001452,2]
[333396041,1722102658785,-566.26,0.0001452,2]
[333396042,1722102658794,-725.66,0.0001452,2]
[333396043,1722102658803,-601.11,0.0001452,2]
[333396044,1722102658813,-500.0,0.0001452,2]
[333396045,1722102658823,-500.0,0.0001452,2]
[333396046,1722102658833,-500.0,0.0001452,2]
[333396047,1722102658843,-500.0,0.0001452,2]
[333396048,1722102658852,-500.0,0.0001452,2]
[333396049,1722102658861,-500.0,0.0001452,2]
[333396050,1722102658870,-500.0,0.0001452,2]
[333396051,1722102658880,-500.0,0.0001452,2]
[333396052,1722102658889,-500.0,0.0001452,2]
[333396053,1722102658898,-500.0,0.0001452,2]
[333396054,1722102658908,-710.53,0.0001452,2]
[333396055,1722102658917,-851.55,0.0001452,2]
[333396056,1722102658927,-500.0,0.0001452,2]
[333396057,1722102658936,-500.0,0.0001452,2]
[333396058,1722102658947,-593.16,0.0001452,2]
[333396059,1722102658957,-254.76,0.0001452,2]
[333396060,1722102658967,-830.66,0.0001452,2]
[333396061,1722102658976,-500.0,0.0001452,2]
[333396062,1722102658986,-677.96,0.0001452,2]
[333396063,1722102658995,-500.0,0.0001452,2]
[333396064,1722102659004,-500.0,0.0001452,2]
[333396065,1722102659015,-1088.39,0.0001452,2]
[333396066,1722102659027,-281.3053282,0.0001452,2]
[333396067,1722102659038,-500.0,0.0001452,2]
[333396068,1722102659048,-500.0,0.0001452,2]
[333396069,1722102659059,-500.0,0.0001452,2]
[333396070,1722102659068,-609.85,0.0001452,2]
[333396071,1722102659078,-562.69,0.0001452,2]
[333396072,1722102659089,-640.77,0.0001452,2]
[333396073,1722102659099,-500.0,0.0001452,2]
[333396074,1722102659110,-289.33739864,0.0001452,2]
[333396075,1722102659120,-500.0,0.0001452,2]
[333396076,1722102659130,-500.0,0.0001452,2]
[333396077,1722102659142,-937.5,0.0001452,2]
[333396078,1722102659154,-500.0,0.0001452,2]
[333396079,1722102659164,-500.0,0.0001452,2]
[333396080,1722102659174,-500.0,0.0001452,2]
[333396081,1722102659184,-523.24,0.0001452,2]
[333396082,1722102659194,-500.0,0.0001452,2]
[333396083,1722102659204,-500.0,0.0001452,2]
[333396084,1722102659213,-500.0,0.0001452,2]
[333396085,1722102659222,-500.0,0.0001452,2]
[333396086,1722102659232,-530.86108534,0.0001452,2]
[333396087,1722102659241,-500.0,0.0001452,2]
[333396088,1722102659251,-510.17837317,0.0001452,2]
[333396089,1722102659261,-215.76,0.0001452,2]
[333396090,1722102659271,-975.16,0.0001452,2]
[333396091,1722102659281,-1128.99,0.0001452,2]
[333396092,1722102659290,-933.2,0.0001452,2]
[333396093,1722102659300,-500.0,0.0001452,2]
[333396094,1722102659309,-209.5868913,0.0001452,2]
[333396095,1722102659318,-500.0,0.0001452,2]
[333396096,1722102659327,-1804.08,0.0001452,2]
[333396097,1722102659341,-3868.36,0.0001452,2]
[333396098,1722102659350,-7069.55,0.0001452,2]
[333396099,1722102659359,-1233.51,0.0001452,2]
[333396100,1722102659370,-500.0,0.0001452,2]
[333396101,1722102659381,-3136.41,0.0001452,2]
[333396102,1722102659394,-980.67,0.0001452,2]
[333396103,1722102659404,-500.0,0.0001452,2]
[333396104,1722102659414,-500.0,0.0001452,2]
[333396105,1722102659426,-500.0,0.0001452,2]
[333396106,1722102659436,-1299.95,0.0001452,2]
[333396107,1722102659447,-2057.15,0.0001452,2]
[333396108,1722102659458,-500.0,0.0001452,2]
[333396109,1722102659468,-161.05218999,0.0001452,2]
[333396110,1722102659478,-500.0,0.0001452,2]
[333396111,1722102659487,-567.63,0.0001452,2]
[333396112,1722102659496,-702.63,0.0001452,2]
[333396113,1722102659506,-878.8,0.0001452,2]
[333396114,1722102659517,-254.14,0.0001452,2]
[333396115,1722102659641,-500.0,0.0001452,2]
[333396116,1722102659651,-555.9,0.0001452,2]
[333396117,1722102659661,-500.0,0.0001452,2]
[333396118,1722102659671,-1183.23,0.0001452,2]
[333396119,1722102659681,-500.0,0.0001452,2]
[333396120,1722102659692,-650.85,0.0001452,2]
[333396121,1722102659703,-500.0,0.0001452,2]
[333396122,1722102659714,-500.0,0.0001452,2]
[333396123,1722102659726,-738.23,0.0001452,2]
[333396124,1722102659735,-1004.1,0.0001452,2]
[333396125,1722102659745,-862.01,0.0001452,2]
[333396126,1722102659754,-257.88312648,0.0001452,2]
[333396127,1722102659763,-1531.53,0.0001452,2]
[333396128,1722102659772,-500.0,0.0001452,2]
[333396129,1722102659782,-578.93071955,0.0001452,2]
[333396130,1722102659791,-500.0,0.0001452,2]
[333396131,1722102659801,-5229.23,0.0001452,2]
[333396132,1722102659810,-2051.53,0.0001452,2]
[333396133,1722102659822,-521.88,0.0001452,2]
[333396134,1722102659832,-500.0,0.0001452,2]
[333396135,1722102659844,-1296.95,0.0001452,2]
[333396136,1722102659856,-500.0,0.0001452,2]
[333396137,1722102659866,-517.48,0.0001452,2]
[333396138,1722102659876,-3017.48,0.0001452,2]
[333396139,1722102659885,-500.0,0.0001452,2]
[333396140,1722102659895,-500.0,0.0001452,2]
[333396141,1722102659904,-1039.73,0.0001452,2]
[333396142,1722102659913,-500.0,0.0001452,2]
[333396143,1722102659922,-719.93,0.0001452,2]
[333396144,1722102659932,-1050.12,0.0001452,2]
[333396145,1722102659942,-500.0,0.0001452,2]
[333396146,1722102659952,-500.0,0.0001452,2]
[333396147,1722102659962,-500.0,0.0001452,2]
[333396148,1722102659971,-1137.82,0.0001452,2]
[333396149,1722102659981,-622.23,0.0001452,2]
[333396150,1722102659990,-500.0,0.0001452,2]
[333396151,1722102660000,-500.0,0.0001452,2]
[333396152,1722102660010,-692.24,0.0001452,2]
[333396153,1722102660019,-500.0,0.0001452,2]
[333396154,1722102660029,-1111.09,0.0001452,2]
[333396155,1722102660038,-1353.5461834,0.0001452,2]
[333396156,1722102660057,-112.3238166,0.0001452,2]
[333396157,1722102660067,-510.81,0.0001452,2]
[333396158,1722102660076,-1151.9911834,0.0001452,2]
[333396159,1722102660088,-13.3488166,0.0001452,2]
[333396160,1722102660098,-568.28,0.0001452,2]
[333396161,1722102660107,-60.8711834,0.0001452,2]
[333396162,1722102665569,273.37336231,9.9e-05,2]
[333396163,1722102673461,273.37336231,9.9e-05,2]
[333396164,1722102682081,273.37336231,9.9e-05,2]
[333396165,1722102691591,273.37336231,9.9e-05,2]
[333396166,1722102699808,273.37336231,9.9e-05,2]
[333396167,1722102709185,273.37336231,9.9e-05,2]
[333396168,1722102717402,273.37336231,9.9e-05,2]
[333396169,1722102719719,172.77789669,9.999e-05,2]
[333396170,1722102725666,273.37336231,9.9e-05,2]
[333396171,1722102733749,273.37336231,9.9e-05,2]
[333396173,1722102741573,273.37336231,9.9e-05,2]
[333396175,1722102749803,273.37336231,9.9e-05,2]
[333396176,1722102757644,273.37336231,9.9e-05,2]
[333396178,1722102764707,341.75517415,9.999e-05,2]
[333396179,1722102765794,273.37336231,9.9e-05,2]
[333396180,1722102773731,273.37336231,9.9e-05,2]
[333396181,1722102781922,273.37336231,9.9e-05,2]
[333396182,1722102789829,273.37336231,9.9e-05,2]
[333396183,1722102797500,1766.41589755,9.9e-05,2]
[333396184,1722102798762,273.37336231,9.9e-05,2]
[333396185,1722102806636,273.37336231,9.9e-05,2]
[333396186,1722102814842,273.37336231,9.9e-05,2]
[333396189,1722102854665,522.77658891,9.999e-05,2]
[333396197,1722103358212,273.37336231,9.9e-05,2]
[333396198,1722103366055,273.37336231,9.9e-05,2]
[333396199,1722103374112,273.37336231,9.9e-05,2]
[333396200,1722103381918,273.37336231,9.9e-05,2]
[333396201,1722103391148,273.37336231,9.9e-05,2]
[333396202,1722103399709,273.37336231,9.9e-05,2]
[333396203,1722103407811,273.37336231,9.9e-05,2]
[333396204,1722103442904,156.44936091,9.999e-05,2]
[333396205,1722103447953,155.13729533,0.0001,2]
[333396206,1722103449531,154.68290005,9.999e-05,2]
[333396207,1722103476698,337.6370591,9.999e-05,2]
[333396208,1722103477308,188.10567749,9.999e-05,2]
[333396209,1722103484210,367.92074618,9.999e-05,2]
[333396210,1722103487034,600.34409866,9.999e-05,2]
[333396211,1722103489819,530.76060764,9.999e-05,2]
[333396212,1722103507885,160.00381439,9.999e-05,2]
[333396213,1722103510392,181.06938724,9.999e-05,2]
[333396214,1722103521158,157.64360329,9.999e-05,2]
[333396215,1722103525355,209.62262002,9.999e-05,2]
[333396216,1722103533832,273.37336231,9.9e-05,2]
[333396217,1722103535135,-417.44407583,0.00010859,2]
[333396218,1722103535157,-377.48898956,0.0001212,2]
[333396219,1722103541697,273.37336231,9.9e-05,2]
[333396220,1722103549750,273.37336231,9.9e-05,2]
[333396221,1722103553238,248.87416602,9.999e-05,2]
[333396222,1722103557586,273.37336231,9.9e-05,2]
[333396223,1722103566403,273.37336231,9.9e-05,2]
[333396224,1722103571932,508.09529268,9.999e-05,2]
[333396225,1722103574215,273.37336231,9.9e-05,2]
[333396226,1722103577082,778.87203636,9.999e-05,2]
[333396227,1722103599534,247.00525347,9.999e-05,2]
[333396228,1722103600601,155.01062865,9.999e-05,2]
[333396229,1722103607042,154.74467129,9.999e-05,2]
[333396230,1722103607398,156.514868,9.999e-05,2]
[333396231,1722103609601,359.45030284,9.999e-05,2]
[333396232,1722103613974,155.01343581,9.999e-05,2]
[333396233,1722103633046,667.22039427,9.999e-05,2]
[333396234,1722103635707,495.69104374,9.9e-05,2]
[333396235,1722103636241,318.6400032,9.999e-05,2]
[333396236,1722103648097,-581.83,0.00010959,2]
[333396237,1722103651111,-92.62,0.00010959,2]
[333396238,1722103651135,-1251.6062696,0.0001212,2]
[333396239,1722103651161,-300.0,0.00012253,2]
[333396240,1722103651186,-612.68347673,0.00012254,2]
[333396241,1722103652087,-1638.06671946,0.00012254,2]
[333396297,1722103832093,-300.0,0.00012253,2]
[333396299,1722103832102,-176.14397417,0.00012254,2]
[333396309,1722103832204,-462.228,0.00012254,2]
[333396361,1722103838127,-416.42424309,0.00012254,2]
[333396364,1722103838138,-572.73246945,0.00012254,2]
[333396366,1722103838149,-22649.24980381,0.00012254,2]
[333396368,1722103838158,-195.948588,0.00012637,2]
[333396369,1722103838169,-195.948588,0.00013295,2]
[333396372,1722103838178,-2211.65826324,0.00013325,2]
[333396472,1722103839226,-522.53835165,0.00013325,2]
[333396474,1722103839236,-1409.0,0.00013329,2]
[333396477,1722103839248,-166.824657,0.00013425,2]
[333396479,1722103839259,-420.0,0.00013479,2]
[333396481,1722103839269,-206.65040743,0.00013488,2]
[333396483,1722103839278,-505.0,0.00013501,2]
[333396485,1722103839287,-154.61816768,0.00013598,2]
[333396487,1722103839296,-18131.40692285,0.000136,2]
[333396568,1722103840093,-3366.21377479,0.000136,2]
[333396571,1722103840104,-107322.798298,0.00013688,2]
[333396573,1722103840114,-500.0,0.00013698,2]
[333396575,1722103840123,-217.18108065,0.00013698,2]
[333396577,1722103840139,-282.81891935,0.00013698,2]
[333396579,1722103840148,-500.0,0.00013698,2]
[333396581,1722103840158,-215.86503214,0.00013698,2]
[333396583,1722103840168,-500.0,0.00013698,2]
[333396585,1722103840178,-500.0,0.00013698,2]
[333396586,1722103840188,-500.0,0.00013698,2]
[333396587,1722103840197,-500.0,0.00013698,2]
[333396588,1722103840207,-500.0,0.00013698,2]
[333396589,1722103840217,-500.0,0.00013698,2]
[333396590,1722103840226,-500.0,0.00013698,2]
[333396591,1722103840237,-500.0,0.00013698,2]
[333396592,1722103840247,-500.0,0.00013698,2]
[333396593,1722103840257,-554.4036553,0.00013698,2]
[333396594,1722103840267,-507.3387264,0.00013698,2]
[333396595,1722103840276,-403.60933229,0.00013698,2]
[333396596,1722103840285,-500.0,0.00013698,2]
[333396597,1722103840295,-508.19550767,0.00013698,2]
[333396598,1722103840305,-500.0,0.00013698,2]
[333396599,1722103840315,-500.0,0.00013698,2]
[333396600,1722103840326,-501.05158394,0.00013698,2]
[333396601,1722103840336,-500.0,0.00013698,2]
[333396602,1722103840347,-500.0,0.00013698,2]
[333396604,1722103840358,-325.27060358,0.00013698,2]
[333396606,1722103840368,-500.0,0.00013698,2]
[333396608,1722103840377,-500.0,0.00013698,2]
[333396610,1722103840386,-500.0,0.00013698,2]
[333396612,1722103840395,-500.0,0.00013698,2]
[333396614,1722103840404,-500.0,0.00013698,2]
[333396616,1722103840413,-76.7458685,0.00013698,2]
[333396617,1722103840427,-423.2541315,0.00013698,2]
[333396620,1722103840436,-510.99444902,0.00013698,2]
[333396622,1722103840446,-500.0,0.00013698,2]
[333396623,1722103840455,-210.64439625,0.00013698,2]
[333396626,1722103840471,-289.35560375,0.00013698,2]
[333396628,1722103840480,-500.0,0.00013698,2]
[333396630,1722103840489,-500.0,0.00013698,2]
[333396632,1722103840498,-500.0,0.00013698,2]
[333396634,1722103840507,-500.0,0.00013698,2]
[333396636,1722103840516,-500.0,0.00013698,2]
[333396638,1722103840525,-477.34439625,0.00013698,2]
[333397386,1722103890526,273.37336231,9.9e-05,2]
[333397387,1722103917848,196.30125481,9.999e-05,2]
[333397388,1722103942572,273.37336231,9.9e-05,2]
[333397389,1722104101647,180.32453325,9.999e-05,2]
[333397391,1722104222561,273.37336231,9.9e-05,2]
[333397392,1722104270970,156.44936091,9.999e-05,2]
[333397393,1722104281641,208.55751505,9.999e-05,2]
[333397394,1722104300685,237.03287832,9.999e-05,2]
[333397395,1722104313082,533.46933228,9.999e-05,2]
[333397401,1722104331488,154.91386387,9.999e-05,2]
[333397402,1722104395415,323.87670209,9.999e-05,2]
[333397403,1722104442536,273.37336231,9.9e-05,2]
[333397404,1722104450437,273.37336231,9.9e-05,2]
[333397405,1722104459175,273.37336231,9.9e-05,2]
[333397406,1722104467122,273.37336231,9.9e-05,2]
[333397407,1722104475866,273.37336231,9.9e-05,2]
[333397408,1722104484333,273.37336231,9.9e-05,2]
[333397409,1722104492435,273.37336231,9.9e-05,2]
[333397410,1722104500290,273.37336231,9.9e-05,2]
[333397411,1722104523957,227.46441562,9.999e-05,2]
[333397412,1722104562805,273.37336231,9.9e-05,2]
[333397413,1722104659459,567.99228217,9.999e-05,2]
[333397414,1722104680075,941.66960481,9.999e-05,2]
[333397415,1722104680686,600.34409866,9.999e-05,2]
[333397416,1722104708310,531.61181222,9.999e-05,2]
[333397418,1722104716672,518.58434175,9.999e-05,2]
[333397419,1722104736642,779.13201586,9.999e-05,2]
[333397420,1722104744140,-855.65526735,0.00010959,2]
[333397422,1722104758010,156.71074716,9.999e-05,2]
[333397423,1722104764821,313.07330924,9.999e-05,2]
[333397424,1722104766288,240.55889109,9.999e-05,2]
[333397425,1722104780886,209.7259495,9.999e-05,2]
[333397426,1722104784207,156.62454437,9.999e-05,2]
[333397427,1722104787820,248.87416602,9.999e-05,2]
[333397432,1722104813692,778.48464131,9.999e-05,2]
[333397435,1722104815530,160.05561459,9.999e-05,2]
[333397436,1722104818335,675.40436247,9.999e-05,2]
[333397440,1722104836097,-6.74473265,0.00010959,2]
[333397441,1722104836119,-866.63134995,0.00010959,2]
[333397444,1722104847101,-27.28865005,0.00010959,2]
[333397445,1722104847125,-300.0,0.00011902,2]
[333397446,1722104847148,-770.90152995,0.00011903,2]
[333397447,1722104847334,-1971.77024609,0.00011903,2]
[333397448,1722104850583,350.77118343,9.999e-05,2]
[333397450,1722104861192,600.34409866,9.999e-05,2]
[333397451,1722104861661,310.18037484,9.999e-05,2]
[333397452,1722104864044,156.63106331,9.999e-05,2]
[333397454,1722104873389,339.45593599,9.999e-05,2]
[333397457,1722104884245,156.54637222,9.999e-05,2]
[333397465,1722104928495,159.97692949,9.999e-05,2]
[333397468,1722104948316,-273.37336231,0.00011902,2]
[333397507,1722105033579,-300.0,0.00011902,2]
[333397508,1722105033588,-1629.09525916,0.00011902,2]
[333397509,1722105033598,-166.955489,0.0001193,2]
[333397510,1722105033609,-2844.00901451,0.00012079,2]
[333397532,1722105038206,-348.0,0.00012079,2]
[333397545,1722105038319,-18945.31920939,0.00012079,2]
[333397547,1722105038329,-419.240975,0.00012084,2]
[333397549,1722105038339,-2477.87812141,0.0001212,2]
[333397551,1722105038349,-208.605328,0.00012143,2]
[333397553,1722105038359,-3011.4113182,0.00012744,2]
[333397556,1722105038368,-208.605328,0.00012776,2]
[333397558,1722105038377,-420.0,0.00013092,2]
[333397560,1722105038386,-2392.42203802,0.00013325,2]
[333397562,1722105038396,-301.0104607,0.00013378,2]
[333397564,1722105038405,-153.0,0.000134,2]
[333397566,1722105038414,-153.0000001,0.000134,2]
[333397568,1722105038424,-153.0,0.000134,2]
[333397570,1722105038433,-166.824657,0.00013425,2]
[333397572,1722105038446,-359.12580064,0.00013466,2]
[333397574,1722105038455,-1409.0,0.00013474,2]
[333397576,1722105038465,-150.0,0.00013474,2]
[333397578,1722105038475,-326.91989514,0.00013474,2]
[333397689,1722105040395,-178.08010486,0.00013474,2]
[333397690,1722105040406,-333.57549542,0.00013497,2]
[333397692,1722105040416,-154.61816767,0.00013498,2]
[333397694,1722105040426,-2190.07927388,0.000135,2]
[333397696,1722105040435,-153.0,0.000135,2]
[333397698,1722105040448,-413.46524,0.000135,2]
[333397699,1722105040458,-153.0,0.000135,2]
[333397700,1722105040468,-5308.13158001,0.0001351,2]
[333397701,1722105040478,-289.18175283,0.00013551,2]
[333397702,1722105040488,-19122.86070666,0.00013588,2]
[333397703,1722105040500,-8098.461599,0.00013588,2]
[333397704,1722105040512,-28340.91689904,0.00013588,2]
[333397705,1722105040522,-2029.64662456,0.00013598,2]
[333397706,1722105040532,-150.112233,0.000136,2]
[333397707,1722105040541,-1727.54465006,0.000136,2]
[333397708,1722105040560,-89.58107827,0.000136,2]
[333397709,1722105040569,-2651.23066387,0.00013655,2]
[333397710,1722105040579,-27781.1196024,0.00013668,2]
[333397711,1722105040588,-1953.36752311,0.00013678,5]
[333397712,1722105040598,-83343.3588071,0.00013678,2]
[333397713,1722105040607,-87544.92189535,0.00013686,2]
[333397714,1722105040617,-11876.13667335,0.00013688,2]
[333397715,1722105040629,-13737.6,0.00013688,2]
[333397716,1722105040639,-3265.3,0.00013688,2]
[333397725,1722105043567,-6868.8,0.00013688,2]
[333397732,1722105047030,-47595.52213375,0.00013688,2]
[333397733,1722105047041,-13854.94557821,0.00013698,5]
[333397734,1722105047051,-501.07115651,0.00013698,2]
[333397735,1722105047061,-500.0,0.00013698,2]
[333397736,1722105047071,-525.94400943,0.00013698,2]
[333397737,1722105047080,-500.0,0.00013698,2]
[333397738,1722105047092,-924.45,0.00013698,2]
[333397739,1722105047102,-500.0,0.00013698,2]
[333397740,1722105047112,-500.0,0.00013698,2]
[333397741,1722105047121,-500.0,0.00013698,2]
[333397742,1722105047131,-500.0,0.00013698,2]
[333397743,1722105047142,-500.0,0.00013698,2]
[333397744,1722105047152,-500.0,0.00013698,2]
[333397745,1722105047164,-550.58622543,0.00013698,2]
[333397746,1722105047173,-500.0,0.00013698,2]
[333397747,1722105047183,-500.0,0.00013698,2]
[333397748,1722105047193,-2758.97,0.00013698,2]
[333397749,1722105047204,-2758.97,0.00013698,2]
[333397750,1722105047216,-2758.97,0.00013698,2]
[333397751,1722105047228,-2758.97,0.00013698,2]
[333397752,1722105047237,-2758.97,0.00013698,2]
[333397753,1722105047247,-2758.97,0.00013698,2]
[333397754,1722105047255,-2758.97,0.00013698,2]
[333397755,1722105047265,-2758.97,0.00013698,2]
[333397756,1722105047274,-184.67716535,0.00013698,2]
[333397757,1722105047283,-2758.97,0.00013698,2]
[333397758,1722105047292,-2758.97,0.00013698,2]
[333397759,1722105047301,-2758.97,0.00013698,2]
[333397760,1722105047311,-2758.97,0.00013698,2]
[333397761,1722105047321,-2758.97,0.00013698,2]
[333397762,1722105047330,-2758.97,0.00013698,2]
[333397763,1722105047340,-2758.97,0.00013698,2]
[333397764,1722105047349,-2758.97,0.00013698,2]
[333397765,1722105047359,-2758.97,0.00013698,2]
[333397766,1722105047368,-2758.97,0.00013698,2]
[333397767,1722105047378,-2758.97,0.00013698,2]
[333397768,1722105047388,-2758.97,0.00013698,2]
[333397769,1722105047398,-2758.97,0.00013698,2]
[333397771,1722105047407,-2758.97,0.00013698,2]
[333397773,1722105047417,-2758.97,0.00013698,2]
[333397775,1722105047426,-2759.05433847,0.00013698,2]
[333397776,1722105047436,-500.0,0.00013698,2]
[333397777,1722105047446,-500.0,0.00013698,2]
[333397778,1722105047457,-500.0,0.00013698,2]
[333397779,1722105047467,-500.0,0.00013698,2]
[333397780,1722105047476,-630.91535431,0.00013698,2]
[333397781,1722105047487,-500.0,0.00013698,2]
[333397782,1722105047496,-500.0,0.00013698,2]
[333397783,1722105047506,-500.0,0.00013698,2]
[333397784,1722105047515,-500.0,0.00013698,2]
[333397785,1722105047525,-500.0,0.00013698,2]
[333397786,1722105047534,-500.0,0.00013698,2]
[333397787,1722105047543,-500.0,0.00013698,2]
[333397788,1722105047553,-500.0,0.00013698,2]
[333397789,1722105047562,-500.0,0.00013698,2]
[333397790,1722105047572,-500.0,0.00013698,2]
[333397791,1722105047582,-500.0,0.00013698,2]
[333397792,1722105047591,-500.0,0.00013698,2]
[333397793,1722105047601,-500.0,0.00013698,2]
[333397794,1722105047610,-500.0,0.00013698,2]
[333397795,1722105047619,-500.0,0.00013698,2]
[333397796,1722105047629,-500.0,0.00013698,2]
[333397797,1722105047639,-500.0,0.00013698,2]
[333397798,1722105047649,-500.0,0.00013698,2]
[333397799,1722105047659,-500.0,0.00013698,2]
[333397800,1722105047668,-500.0,0.00013698,2]
[333397801,1722105047678,-500.0,0.00013698,2]
[333397802,1722105047688,-500.0,0.00013698,2]
[333397803,1722105047698,-198.97929817,0.00013698,2]
[333397804,1722105047708,-500.0,0.00013698,2]
[333397805,1722105047717,-506.01830379,0.00013698,2]
[333397806,1722105047729,-502.22351897,0.00013698,2]
[333397807,1722105047739,-500.0,0.00013698,2]
[333397808,1722105047749,-500.0,0.00013698,2]
[333397809,1722105047758,-500.0,0.00013698,2]
[333397810,1722105047767,-500.0,0.00013698,2]
[333397811,1722105047777,-501.53988826,0.00013698,2]
[333397812,1722105047786,-500.0,0.00013698,2]
[333397813,1722105047796,-501.72351457,0.00013698,2]
[333397814,1722105047805,-500.0,0.00013698,2]
[333397815,1722105047815,-500.0,0.00013698,2]
[333397816,1722105047970,-500.0,0.00013698,2]
[333397817,1722105047981,-500.0,0.00013698,2]
[333397818,1722105047991,-500.0,0.00013698,2]
[333397819,1722105048000,-500.0,0.00013698,2]
[333397820,1722105048014,-500.0,0.00013698,2]
[333397821,1722105048024,-473.58590118,0.00013698,2]
[333397822,1722105048033,-500.0,0.00013698,2]
[333397823,1722105048043,-500.0,0.00013698,2]
[333397824,1722105048054,-500.0,0.00013698,2]
[333397825,1722105048063,-500.0,0.00013698,2]
[333397826,1722105048073,-500.0,0.00013698,2]
[333397827,1722105048083,-500.0,0.00013698,2]
[333397828,1722105048093,-502.14441121,0.00013698,2]
[333397829,1722105048103,-500.0,0.00013698,2]
[333397830,1722105048114,-500.0,0.00013698,2]
[333397831,1722105048125,-643.77653392,0.00013698,2]
[333397832,1722105048138,-363.12720465,0.00013698,2]
[333397833,1722105048148,-500.0,0.00013698,2]
[333397834,1722105048161,-500.0,0.00013698,2]
[333397835,1722105048171,-500.0,0.00013698,2]
[333397836,1722105048182,-309.18495205,0.00013698,2]
[333397837,1722105048192,-500.0,0.00013698,2]
[333397838,1722105048205,-500.0,0.00013698,2]
[333397839,1722105048215,-500.0,0.00013698,2]
[333397840,1722105048225,-998.59,0.00013698,2]
[333397841,1722105048235,-500.0,0.00013698,2]
[333397842,1722105048245,-500.0,0.00013698,2]
[333397843,1722105048254,-500.0,0.00013698,2]
[333397844,1722105048264,-500.0,0.00013698,2]
[333397845,1722105048274,-500.0,0.00013698,2]
[333397846,1722105048284,-500.0,0.00013698,2]
[333397847,1722105048295,-500.0,0.00013698,2]
[333397848,1722105048305,-535.5,0.00013698,2]
[333397849,1722105048315,-500.0,0.00013698,2]
[333397850,1722105048325,-504.88047884,0.00013698,2]
[333397851,1722105048334,-500.0,0.00013698,2]
[333397852,1722105048344,-500.0,0.00013698,2]
[333397853,1722105048355,-500.0,0.00013698,2]
[333397854,1722105048365,-1123.56,0.00013698,2]
[333397855,1722105048375,-500.0,0.00013698,2]
[333397856,1722105048385,-500.0,0.00013698,2]
[333397857,1722105048395,-500.0,0.00013698,2]
[333397858,1722105048404,-535.16757182,0.00013698,2]
[333397859,1722105048414,-151.0,0.00013698,2]
[333397860,1722105048423,-500.0,0.00013698,2]
[333397861,1722105048433,-500.0,0.00013698,2]
[333397862,1722105048443,-500.0,0.00013698,2]
[333397863,1722105048454,-500.0,0.00013698,2]
[333397864,1722105048464,-500.0,0.00013698,2]
[333397865,1722105048474,-595.76359797,0.00013698,2]
[333397866,1722105048484,-500.0,0.00013698,2]
[333397867,1722105048494,-500.0,0.00013698,2]
[333397868,1722105048504,-500.0,0.00013698,2]
[333397869,1722105048513,-500.0,0.00013698,2]
[333397870,1722105048524,-507.33764303,0.00013698,2]
[333397871,1722105048534,-151.0,0.00013698,2]